fUST/lending_fUST_20251206
["ID","MTS","AMOUNT","RATE_DAILY","PERIOD"]
[396522091,1765032624979,162.0,5.8e-07,2]
[396522123,1765032632228,-1805.76927796,8.598e-05,2]
[396522124,1765032632244,-983.53926071,8.598e-05,2]
[396522125,1765032632254,-3313.79464195,8.598e-05,2]
[396522126,1765032632264,-3313.79464195,8.598e-05,2]
[396522127,1765032632273,-3313.79464195,8.598e-05,2]
[396522128,1765032632283,-3313.79464195,8.598e-05,2]
[396522129,1765032632292,-3313.79464195,8.598e-05,2]
[396522130,1765032632302,-3313.79464195,8.598e-05,2]
[396522131,1765032632311,-3313.79464195,8.598e-05,2]
[396522132,1765032632321,-3313.79464195,8.598e-05,2]
[396522133,1765032632330,-3313.79464195,8.598e-05,2]
[396522134,1765032632340,-3313.79464195,8.598e-05,2]
[396522135,1765032632349,-3313.79464195,8.598e-05,2]
[396522136,1765032632358,-3313.79464195,8.598e-05,2]
[396522137,1765032632368,-2135.49321735,8.598e-05,2]
[396522138,1765032632377,-2135.49321735,8.598e-05,2]
[396522139,1765032632387,-2135.49321735,8.598e-05,2]
[396522140,1765032632396,-2135.49321735,8.598e-05,2]
[396522141,1765032632405,-2135.49321735,8.598e-05,2]
[396522142,1765032632417,-2135.49321735,8.598e-05,2]
[396522143,1765032632426,-2135.49321735,8.598e-05,2]
[396522144,1765032632435,-2135.49321735,8.598e-05,2]
[396522145,1765032632445,-2135.49321735,8.598e-05,2]
[396522146,1765032632454,-2135.49321735,8.598e-05,2]
[396522147,1765032632463,-2135.49321735,8.598e-05,2]
[396522148,1765032632473,-2135.49321735,8.598e-05,2]
[396522149,1765032632483,-2135.49321735,8.598e-05,2]
[396522150,1765032632492,-2135.49321735,8.598e-05,2]
[396522151,1765032632502,-2135.49321735,8.598e-05,2]
[396522152,1765032632511,-2135.49321735,8.598e-05,2]
[396522153,1765032632520,-2135.49321735,8.598e-05,2]
[396522154,1765032632530,-2135.49321735,8.598e-05,2]
[396522155,1765032632539,-2135.49321735,8.598e-05,2]
[396522156,1765032632549,-2135.49321735,8.598e-05,2]
[396522157,1765032632558,-2135.49321735,8.598e-05,2]
[396522158,1765032632567,-2135.49321735,8.598e-05,2]
[396522159,1765032632576,-2135.49321735,8.598e-05,2]
[396522160,1765032632586,-2120.7336759,8.598e-05,2]
[396522161,1765032632620,-14.75954145,8.598e-05,2]
[396522162,1765032632630,-610.60227448,8.598e-05,2]
[396522163,1765032632641,-1524.89094287,8.598e-05,2]
[396522164,1765032632651,-2135.49321735,8.598e-05,2]
[396522165,1765032632660,-2135.49321735,8.598e-05,2]
[396522166,1765032632669,-2135.49321735,8.598e-05,2]
[396522167,1765032632679,-2135.49321735,8.598e-05,2]
[396522168,1765032632688,-2135.49321735,8.598e-05,2]
[396522169,1765032632697,-2135.49321735,8.598e-05,2]
[396522170,1765032632707,-2135.49321735,8.598e-05,2]
[396522171,1765032632719,-2135.49321735,8.598e-05,2]
[396522172,1765032632728,-2135.49321735,8.598e-05,2]
[396522173,1765032632738,-2135.49321735,8.598e-05,2]
[396522174,1765032632747,-2135.49321735,8.598e-05,2]
[396522175,1765032632757,-2135.49321735,8.598e-05,2]
[396522176,1765032632767,-2135.49321735,8.598e-05,2]
[396522177,1765032632776,-2135.49321735,8.598e-05,2]
[396522178,1765032632786,-2114.20814718,8.598e-05,2]
[396522179,1765032632795,-2114.20814718,8.598e-05,2]
[396522180,1765032632804,-2114.20814718,8.598e-05,2]
[396522181,1765032632814,-2114.20814718,8.598e-05,2]
[396522182,1765032632823,-2114.20814718,8.598e-05,2]
[396522183,1765032632833,-2114.20814718,8.598e-05,2]
[396522184,1765032632842,-2114.20814718,8.598e-05,2]
[396522185,1765032632852,-2114.20814718,8.598e-05,2]
[396522186,1765032632861,-2114.20814718,8.598e-05,2]
[396522187,1765032632871,-2114.20814718,8.598e-05,2]
[396522188,1765032632883,-2114.20814718,8.598e-05,2]
[396522189,1765032632892,-2114.20814718,8.598e-05,2]
[396522190,1765032632902,-2114.20814718,8.598e-05,2]
[396522191,1765032632912,-2114.20814718,8.598e-05,2]
[396522192,1765032632922,-2114.20814718,8.598e-05,2]
[396522193,1765032632931,-2114.20814718,8.598e-05,2]
[396522194,1765032632940,-2114.20814718,8.598e-05,2]
[396522195,1765032632950,-2114.20814718,8.598e-05,2]
[396522196,1765032632959,-2114.20814718,8.598e-05,2]
[396522197,1765032632969,-2114.20814718,8.598e-05,2]
[396522198,1765032632979,-2114.20814718,8.598e-05,2]
[396522199,1765032632988,-2114.20814718,8.598e-05,2]
[396522200,1765032632998,-2114.20814718,8.598e-05,2]
[396522201,1765032633007,-2114.20814718,8.598e-05,2]
[396522202,1765032633018,-500.0,8.598e-05,2]
[396522203,1765032633034,-500.0,8.598e-05,2]
[396522204,1765032633044,-500.0,8.598e-05,2]
[396522205,1765032633053,-500.0,8.598e-05,2]
[396522206,1765032633067,-505.33745388,8.598e-05,2]
[396522207,1765032633076,-2559.59376795,8.598e-05,2]
[396522208,1765032633085,-2559.59376795,8.598e-05,2]
[396522209,1765032633094,-2559.59376795,8.598e-05,2]
[396522210,1765032633104,-2559.59376795,8.598e-05,2]
[396522211,1765032633114,-2559.59376795,8.598e-05,2]
[396522212,1765032633123,-2559.59376795,8.598e-05,2]
[396522213,1765032633132,-2559.59376795,8.598e-05,2]
[396522214,1765032633141,-2559.59376795,8.598e-05,2]
[396522215,1765032633151,-2559.59376795,8.598e-05,2]
[396522216,1765032633161,-2559.59376795,8.598e-05,2]
[396522217,1765032633170,-2559.59376795,8.598e-05,2]
[396522218,1765032633180,-2559.59376795,8.598e-05,2]
[396522219,1765032633189,-2559.59376795,8.598e-05,2]
[396522220,1765032633198,-500.0,8.598e-05,2]
[396522221,1765032633207,-500.0,8.598e-05,2]
[396522222,1765032633216,-500.0,8.598e-05,2]
[396522223,1765032633225,-201.47163254,8.598e-05,2]
[396522224,1765032633234,-2312.83697232,8.599e-05,2]
[396522225,1765032633243,-67951.76391825,8.599e-05,2]
[396522226,1765032634295,613.06532463,8.598e-05,2]
[396522229,1765032637359,686.05969484,8.512e-05,2]
[396522230,1765032637422,10000.01,8.512e-05,2]
[396522232,1765032637481,3925.97167177,8.512e-05,2]
[396522252,1765032639088,277.33,7.317e-05,2]
[396522255,1765032639507,554.65,7.982e-05,2]
[396522265,1765032641304,-3e-08,8.599e-05,2]
[396522266,1765032641640,-31776.82556964,8.599e-05,2]
[396522267,1765032641672,-13756.94912138,8.599e-05,2]
[396522268,1765032641683,-176297.75966517,8.599e-05,2]
[396522269,1765032641694,-458.9508,8.599e-05,2]
[396522270,1765032641723,-75841.86150045,8.599e-05,2]
[396522290,1765032643046,-1940.55086211,8.599e-05,2]
[396522291,1765032643069,-1504.3502,8.599e-05,2]
[396522307,1765032647031,-3632.95995807,8.599e-05,2]
[396522308,1765032678782,1509.87,8.3e-05,2]
[396522309,1765032679174,1509.87,8.4e-05,2]
[396522310,1765032681253,-416.30067754,8.428e-05,2]
[396522311,1765032684853,-189.08130832,8.428e-05,2]
[396522321,1765032687593,-363.38578412,8.428e-05,2]
[396522333,1765032690264,-176.45544528,8.428e-05,2]
[396522334,1765032692316,-228.73563262,8.428e-05,2]
[396522337,1765032694259,-174.9151614,8.428e-05,2]
[396522338,1765032697623,-160.24,8.428e-05,2]
[396522339,1765032701529,-454.2047157,8.428e-05,2]
[396522340,1765032703801,-152.72,8.428e-05,2]
[396522342,1765032709725,-266.97089697,8.428e-05,2]
[396522343,1765032717826,-191.40125381,8.428e-05,2]
[396522344,1765032718278,266.74,6.951e-05,2]
[396522345,1765032718734,533.47,7.583e-05,2]
[396522346,1765032719138,800.21,8.215e-05,2]
[396522347,1765032725193,-201.77467229,8.428e-05,2]
[396522348,1765032739863,1493.93,8.3e-05,2]
[396522349,1765032740190,1493.93,8.4e-05,2]
[396522376,1765032799700,264.71,6.977e-05,2]
[396522377,1765032799766,1489.82,8.3e-05,2]
[396522378,1765032800482,529.42,7.611e-05,2]
[396522379,1765032800580,108.04,8.4e-05,2]
[396522380,1765032800640,1381.78,8.4e-05,2]
[396522381,1765032800763,794.13,8.245e-05,2]
[396522383,1765032816401,428.0,0.00016,120]
[396522384,1765032850904,2820.3229103,7.682e-05,2]
[396522385,1765032859879,1551.93,8.3e-05,2]
[396522386,1765032860210,1551.93,8.4e-05,2]
[396522387,1765032867361,216.18121639,8.386e-05,2]
[396522388,1765032873169,273.7709278,8.359e-05,2]
[396522389,1765032878612,251.92,7.585e-05,2]
[396522390,1765032879206,503.84,8.275e-05,2]
[396522394,1765032883032,216.18121639,8.386e-05,2]
[396522398,1765032891253,-216.18121639,8.471e-05,2]
[396522399,1765032891313,-20.38691863,8.5e-05,2]
[396522400,1765032891483,216.18121639,8.386e-05,2]
[396522401,1765032894120,-163.4661529,8.5e-05,2]
[396522403,1765032896296,-397.01524404,8.5e-05,2]
[396522405,1765032898378,-170.13759692,8.5e-05,2]
[396522407,1765032900213,-264.36760307,8.5e-05,2]
[396522409,1765032901724,-264.43587518,8.5e-05,2]
[396522410,1765032903356,-300.0,8.594e-05,2]
[396522411,1765032903432,-300.0,8.594e-05,2]
[396522412,1765032903499,-71.27240308,8.594e-05,2]
[396522414,1765032906070,-155.76528857,8.594e-05,2]
[396522418,1765032908145,-72.96230835,8.594e-05,2]
[396522419,1765032908207,-87.47828696,8.595e-05,2]
[396522420,1765032910221,-300.0,8.594e-05,2]
[396522432,1765032913585,-321.79980335,8.594e-05,2]
[396522433,1765032915771,-221.61461118,8.594e-05,2]
[396522434,1765032915961,1200.0,8.508e-05,2]
[396522435,1765032917920,-253.90223388,8.594e-05,2]
[396522436,1765032920328,1554.02,8.3e-05,2]
[396522437,1765032920673,-213.96167796,8.594e-05,2]
[396522438,1765032920766,1554.02,8.4e-05,2]
[396522439,1765032921236,1554.02,8.5e-05,2]
[396522440,1765032923801,-188.72167363,8.594e-05,2]
[396522441,1765032923868,-17.09345497,8.595e-05,2]
[396522442,1765032926059,-395.42825807,8.595e-05,2]
[396522443,1765032926133,-54.45121325,8.595e-05,2]
[396522444,1765032927841,-302.58576107,8.595e-05,2]
[396522445,1765032929805,-110.38625751,8.595e-05,2]
[396522446,1765032929874,-161.96650978,8.595e-05,2]
[396522447,1765032931237,3820.73522142,8.509e-05,2]
[396522448,1765032939120,1808.63420701,8.509e-05,2]
[396522449,1765032954198,195.67967669,8.509e-05,2]
[396522450,1765032958442,253.01,7.591e-05,2]
[396522451,1765032959421,506.02,8.282e-05,2]
[396522453,1765032970142,-300.0,8.594e-05,2]
[396522454,1765032980696,1653.02,8.3e-05,2]
[396522455,1765032980823,1653.02,8.4e-05,2]
[396522456,1765032980967,1653.02,8.5e-05,2]
[396522458,1765032992755,500.0,8.594e-05,2]
[396522459,1765032992859,500.0,8.594e-05,2]
[396522460,1765032992961,500.0,8.594e-05,2]
[396522461,1765032993059,500.0,8.594e-05,2]
[396522462,1765032993142,506.46138779,8.594e-05,2]
[396522463,1765032993237,500.0,8.594e-05,2]
[396522464,1765032993562,500.0,8.594e-05,2]
[396522465,1765032993702,500.0,8.594e-05,2]
[396522466,1765032993802,500.0,8.594e-05,2]
[396522467,1765032993945,500.0,8.594e-05,2]
[396522468,1765032994088,500.0,8.594e-05,2]
[396522469,1765032994200,500.0,8.594e-05,2]
[396522470,1765032994301,500.0,8.594e-05,2]
[396522471,1765032994383,500.0,8.594e-05,2]
[396522472,1765032994462,500.0,8.594e-05,2]
[396522473,1765032994547,500.0,8.594e-05,2]
[396522474,1765032994628,500.0,8.594e-05,2]
[396522475,1765032994723,500.0,8.594e-05,2]
[396522476,1765032994803,500.0,8.594e-05,2]
[396522477,1765032994886,171.48116582,8.594e-05,2]
[396522478,1765032995068,322.06744639,8.594e-05,2]
[396522479,1765032995135,177.93255361,8.594e-05,2]
[396522480,1765032995247,500.0,8.594e-05,2]
[396522481,1765032995358,500.0,8.594e-05,2]
[396522482,1765032995437,500.0,8.594e-05,2]
[396522483,1765032998754,1436.0,8.509e-05,2]
[396522484,1765033000111,-1200.0,8.595e-05,2]
[396522485,1765033000174,-236.0,8.595e-05,2]
[396522487,1765033006572,2312.83697232,8.512e-05,2]
[396522488,1765033009901,500.0,8.594e-05,2]
[396522489,1765033009995,500.0,8.594e-05,2]
[396522490,1765033010088,500.0,8.594e-05,2]
[396522491,1765033010173,500.0,8.594e-05,2]
[396522492,1765033010267,500.0,8.594e-05,2]
[396522493,1765033010354,500.0,8.594e-05,2]
[396522494,1765033010442,500.0,8.594e-05,2]
[396522495,1765033010533,500.0,8.594e-05,2]
[396522496,1765033010620,500.0,8.594e-05,2]
[396522497,1765033010734,315.17302768,8.594e-05,2]
[396522498,1765033010799,184.82697232,8.594e-05,2]
[396522499,1765033010903,500.0,8.594e-05,2]
[396522500,1765033010998,500.0,8.594e-05,2]
[396522501,1765033011082,500.0,8.594e-05,2]
[396522502,1765033011166,500.0,8.594e-05,2]
[396522503,1765033011279,500.0,8.594e-05,2]
[396522504,1765033011361,500.0,8.594e-05,2]
[396522505,1765033011436,500.0,8.594e-05,2]
[396522506,1765033011541,500.0,8.594e-05,2]
[396522507,1765033011787,500.0,8.594e-05,2]
[396522508,1765033012305,500.0,8.594e-05,2]
[396522509,1765033012387,422.40733821,8.594e-05,2]
[396522510,1765033012476,500.0,8.594e-05,2]
[396522511,1765033018135,-2312.83697232,8.598e-05,2]
[396522513,1765033022866,1653.02,8.514e-05,2]
[396522514,1765033027712,500.0,8.594e-05,2]
[396522515,1765033027786,500.0,8.594e-05,2]
[396522516,1765033027887,242.24073383,8.594e-05,2]
[396522517,1765033027977,500.0,8.594e-05,2]
[396522518,1765033028052,500.0,8.594e-05,2]
[396522519,1765033028130,500.0,8.594e-05,2]
[396522520,1765033028219,500.0,8.594e-05,2]
[396522521,1765033028302,479.07532153,8.594e-05,2]
[396522522,1765033028376,20.92467847,8.594e-05,2]
[396522523,1765033028455,500.0,8.594e-05,2]
[396522524,1765033028535,500.0,8.594e-05,2]
[396522525,1765033028615,500.0,8.594e-05,2]
[396522532,1765033030747,248.116,8.521e-05,2]
[396522534,1765033034288,-248.116,8.607e-05,2]
[396522538,1765033038119,263.57,7.285e-05,2]
[396522539,1765033038516,527.14,7.947e-05,2]
[396522540,1765033044061,1554.04,8.3e-05,2]
[396522541,1765033044387,1554.04,8.4e-05,2]
[396522542,1765033044773,1554.04,8.5e-05,2]
[396522543,1765033045144,1554.04,8.6e-05,2]
[396522544,1765033046062,790.7,8.523e-05,2]
[396522545,1765033049676,-790.7,8.609e-05,2]
[396522546,1765033054452,550.3130253,8.524e-05,2]
[396522554,1765033065872,-153.0,8.61e-05,2]
[396522555,1765033065941,-397.3130253,8.61e-05,2]
[396522556,1765033069256,215.97389463,8.554e-05,2]
[396522557,1765033077734,215.97389463,8.554e-05,2]
[396522558,1765033093310,215.97389463,8.554e-05,2]
[396522559,1765033098777,1429.71,8.3e-05,2]
[396522560,1765033099101,1429.71,8.4e-05,2]
[396522561,1765033099424,1429.71,8.5e-05,2]
[396522562,1765033099755,1429.71,8.6e-05,2]
[396522563,1765033101067,215.97389463,8.554e-05,2]
[396522564,1765033116687,215.97389463,8.554e-05,2]
[396522565,1765033117924,243.44,7.357e-05,2]
[396522566,1765033118171,486.88,8.026e-05,2]
[396522567,1765033124363,215.97389463,8.554e-05,2]
[396522607,1765033140165,215.97389463,8.554e-05,2]
[396522638,1765033148493,215.97389463,8.554e-05,2]
[396522654,1765033161699,1315.34,8.3e-05,2]
[396522655,1765033162007,939.66663222,8.4e-05,2]
[396522656,1765033162069,375.67336778,8.4e-05,2]
[396522657,1765033162364,1315.34,8.5e-05,2]
[396522658,1765033162692,1315.34,8.6e-05,2]
[396522659,1765033164195,215.97389463,8.554e-05,2]
[396522667,1765033171754,881.68114,7.907e-05,2]
[396522668,1765033172022,215.97389463,8.554e-05,2]
[396522669,1765033187198,215.97389463,8.554e-05,2]
[396522670,1765033196933,215.97389463,8.554e-05,2]
[396522671,1765033197131,234.15,7.315e-05,2]
[396522672,1765033197547,468.29,7.98e-05,2]
[396522673,1765033201218,186.8464076,0.0001311,3]
[396522674,1765033205504,222.0,8.64e-05,2]
[396522675,1765033208319,300.0,8.639e-05,2]
[396522676,1765033209752,1200.0,8.639e-05,2]
[396522677,1765033212982,2451.86251251,8.554e-05,2]
[396522678,1765033218319,371.77740119,8.3e-05,2]
[396522679,1765033218389,838.33259881,8.3e-05,2]
[396522680,1765033218657,1210.11,8.4e-05,2]
[396522681,1765033218957,1210.11,8.5e-05,2]
[396522682,1765033219241,1210.11,8.6e-05,2]
[396522683,1765033220431,2451.86251251,8.554e-05,2]
[396522687,1765033236204,2451.86251251,8.554e-05,2]
[396522689,1765033244481,627.62237617,8.554e-05,2]
[396522690,1765033244539,1824.24013634,8.554e-05,2]
[396522694,1765033259578,2451.86251251,8.554e-05,2]
[396522697,1765033262614,300.0,8.639e-05,2]
[396522698,1765033267404,2451.86251251,8.554e-05,2]
[396522699,1765033276393,244.51,7.315e-05,2]
[396522700,1765033276797,489.03,7.98e-05,2]
[396522701,1765033277577,1113.3,8.3e-05,2]
[396522702,1765033277877,1113.3,8.4e-05,2]
[396522703,1765033278227,11.90483864,8.5e-05,2]
[396522704,1765033278289,1101.39516136,8.5e-05,2]
[396522705,1765033278585,1113.3,8.6e-05,2]
[396522706,1765033282721,2451.86251251,8.554e-05,2]
[396522707,1765033290551,2451.86251251,8.554e-05,2]
[396522708,1765033296844,-215.97389463,8.64e-05,2]
[396522709,1765033296900,-68.51192233,8.64e-05,2]
[396522710,1765033298020,-214.45172086,8.64e-05,2]
[396522711,1765033305844,1952.92497469,8.554e-05,2]
[396522713,1765033313691,928.66483893,8.554e-05,2]
[396522714,1765033313758,1024.26013576,8.554e-05,2]
[396522723,1765033328261,8975.74986424,7.985e-05,2]
[396522724,1765033328324,10000.01,7.985e-05,2]
[396522725,1765033328388,10000.01,7.985e-05,2]
[396522726,1765033328451,10000.01,7.985e-05,2]
[396522727,1765033328517,65.65843896,7.985e-05,2]
[396522728,1765033329471,9934.35156104,7.905e-05,2]
[396522729,1765033329538,10000.01,7.905e-05,2]
[396522730,1765033329604,10000.01,7.905e-05,2]
[396522731,1765033329635,9107.06674216,7.905e-05,2]
[396522732,1765033337422,1034.21,8.3e-05,2]
[396522733,1765033337528,1160.38110286,8.275e-05,2]
[396522734,1765033338677,-394.4910464,8.358e-05,2]
[396522735,1765033342237,-19.93077605,8.358e-05,2]
[396522736,1765033342299,-235.23679434,8.358e-05,2]
[396522737,1765033345793,-231.0,8.358e-05,2]
[396522738,1765033347320,2358.33432745,8.275e-05,2]
[396522739,1765033348493,-275.75509805,8.358e-05,2]
[396522740,1765033351354,-3.96738802,8.358e-05,2]
[396522741,1765033351414,-290.53443117,8.358e-05,2]
[396522742,1765033354010,-214.98371329,8.358e-05,2]
[396522743,1765033355544,266.04,7.06e-05,2]
[396522744,1765033355697,3105.65240383,8.275e-05,2]
[396522745,1765033355998,532.07,7.702e-05,2]
[396522746,1765033356453,798.11,8.344e-05,2]
[396522747,1765033358975,-300.0,8.358e-05,2]
[396522748,1765033360686,-161.57926918,8.358e-05,2]
[396522749,1765033362752,2768.07143732,0.0001311,3]
[396522750,1765033363024,-359.05241821,8.358e-05,2]
[396522751,1765033363082,-97.58640406,8.358e-05,2]
[396522752,1765033364334,2590.66869054,8.275e-05,2]
[396522753,1765033364987,-192.72826586,8.358e-05,2]
[396522754,1765033368372,-220.0,8.358e-05,2]
[396522755,1765033372203,349.13457818,8.275e-05,2]
[396522756,1765033372267,1210.58775505,8.275e-05,2]
[396522757,1765033375124,-227.16857435,8.358e-05,2]
[396522758,1765033378299,-519.77156038,8.358e-05,2]
[396522759,1765033380726,1332.55375888,8.275e-05,2]
[396522760,1765033388708,812.7821985,8.275e-05,2]
[396522761,1765033396920,812.7821985,8.275e-05,2]
[396522762,1765033403760,1825.94,8.3e-05,2]
[396522763,1765033404832,812.7821985,8.275e-05,2]
[396522765,1765033413045,812.7821985,8.275e-05,2]
[396522766,1765033416326,-396.70744623,8.358e-05,2]
[396522767,1765033428850,416.07475227,8.275e-05,2]
[396522768,1765033434184,285.29,7.047e-05,2]
[396522769,1765033434664,570.58,7.688e-05,2]
[396522770,1765033435071,855.87,8.329e-05,2]
[396522771,1765033437286,251.9849398,8.275e-05,2]
[396522772,1765033437340,164.08981247,8.275e-05,2]
[396522773,1765033452355,416.07475227,8.275e-05,2]
[396522775,1765033459199,1841.15,8.3e-05,2]
[396522776,1765033460914,416.07475227,8.275e-05,2]
[396522777,1765033468802,238.31013223,8.275e-05,2]
[396522778,1765033476925,-214.06772009,8.358e-05,2]
[396522779,1765033477130,416.07475227,8.275e-05,2]
[396522780,1765033477459,324.15074065,8.258e-05,2]
[396522781,1765033480139,370.45798932,8.258e-05,2]
[396522782,1765033480268,-202.00703218,8.358e-05,2]
[396522783,1765033480321,-0.40568525,8.379e-05,2]
[396522784,1765033482675,578.2617677,8.258e-05,2]
[396522786,1765033484962,215.10329681,8.295e-05,2]
[396522788,1765033500817,215.10329681,8.295e-05,2]
[396522792,1765033508785,215.10329681,8.295e-05,2]
[396522793,1765033513038,297.86,6.786e-05,2]
[396522794,1765033513465,595.72,7.109e-05,2]
[396522795,1765033513878,893.58,7.432e-05,2]
[396522796,1765033514299,1191.44,7.755e-05,2]
[396522797,1765033514707,1489.3,8.078e-05,2]
[396522798,1765033522038,1860.91,8.3e-05,2]
[396522799,1765033524498,215.10329681,8.295e-05,2]
[396522800,1765033532299,215.10329681,8.295e-05,2]
[396522801,1765033533982,-215.10329681,8.379e-05,2]
[396522802,1765033534048,-229.21699685,8.4e-05,2]
[396522803,1765033551447,-249.37986527,8.316e-05,2]
[396522804,1765033556691,1382.31313788,8.233e-05,2]
[396522807,1765033579173,1382.31313788,8.233e-05,2]
[396522808,1765033582694,1846.36,8.3e-05,2]
[396522820,1765033591246,297.53,7.395e-05,2]
[396522821,1765033592066,595.06,7.747e-05,2]
[396522822,1765033592175,892.59,8.1e-05,2]
[396522828,1765033596305,-689.59075951,8.316e-05,2]
[396522829,1765033601369,692.72237837,8.233e-05,2]
[396522830,1765033623849,692.72237837,8.233e-05,2]
[396522831,1765033641242,1827.22,8.3e-05,2]
[396522832,1765033646104,692.72237837,8.233e-05,2]
[396522833,1765033668484,692.72237837,8.233e-05,2]
[396522834,1765033670634,283.59,6.734e-05,2]
[396522835,1765033671037,567.17,7.055e-05,2]
[396522836,1765033671490,850.76,7.376e-05,2]
[396522837,1765033671945,1134.34,7.696e-05,2]
[396522838,1765033672353,1417.93,8.017e-05,2]
[396522839,1765033691203,692.72237837,8.233e-05,2]
[396522840,1765033699057,619.534,8.233e-05,2]
[396522841,1765033706063,1828.97,8.3e-05,2]
[396522842,1765033714121,692.72237837,8.233e-05,2]
[396522845,1765033736303,692.72237837,8.233e-05,2]
[396522848,1765033743565,250.0,0.00013109,3]
[396522849,1765033744141,692.72237837,8.233e-05,2]
[396522850,1765033748030,249.37,6.731e-05,2]
[396522851,1765033748452,498.74,7.052e-05,2]
[396522852,1765033748916,748.11,7.372e-05,2]
[396522853,1765033749351,997.47,7.693e-05,2]
[396522854,1765033749824,1246.84,8.014e-05,2]
[396522855,1765033752517,692.72237837,8.233e-05,2]
[396522856,1765033760242,1040.08648652,8.3e-05,2]
[396522857,1765033760277,780.58351348,8.3e-05,2]
[396522858,1765033761137,211.19880242,8.244e-05,2]
[396522859,1765033768860,211.19880242,8.244e-05,2]
[396522860,1765033776931,211.19880242,8.244e-05,2]
[396522861,1765033779278,1820.66,8.251e-05,2]
[396522891,1765033785155,211.19880242,8.244e-05,2]
[396522908,1765033793425,211.19880242,8.244e-05,2]
[396522912,1765033801770,211.19880242,8.244e-05,2]
[396522917,1765033809554,219.0,8.244e-05,2]
[396522926,1765033818102,219.0,8.244e-05,2]
[396522929,1765033820508,1774.12,8.3e-05,2]
[396522934,1765033822794,1571.12,8.317e-05,2]
[396522949,1765033825583,204.89,6.646e-05,2]
[396522950,1765033825991,409.79,6.962e-05,2]
[396522953,1765033826415,614.68,7.279e-05,2]
[396522954,1765033826525,219.0,8.244e-05,2]
[396522958,1765033826831,819.57,7.595e-05,2]
[396522960,1765033827265,1024.47,7.911e-05,2]
[396522961,1765033827500,47.7159879,3.805e-05,2]
[396522962,1765033827529,123.1645561,3.805e-05,2]
[396522963,1765033827675,170.880544,4.757e-05,2]
[396522964,1765033827714,1229.36,8.228e-05,2]
[396522965,1765033827876,170.880544,5.708e-05,2]
[396522966,1765033828135,170.880544,6.659e-05,2]
[396522967,1765033828315,170.880544,7.611e-05,2]
[396522994,1765033832147,-219.0,8.327e-05,2]
[396522995,1765033832157,-211.19880242,8.327e-05,2]
[396522996,1765033832168,-663.11985087,8.4e-05,2]
[396522997,1765033832224,-1016.70874072,8.4e-05,2]
[396523008,1765033837878,-94.29140841,8.4e-05,2]
[396523009,1765033837889,-1774.12,8.5e-05,2]
[396523010,1765033837898,-500.0,8.501e-05,2]
[396523011,1765033837908,-500.0,8.501e-05,2]
[396523012,1765033837918,-500.0,8.501e-05,2]
[396523013,1765033837928,-500.0,8.501e-05,2]
[396523014,1765033837937,-500.0,8.501e-05,2]
[396523015,1765033837946,-274.22407338,8.501e-05,2]
[396523016,1765033837955,-172.6193608,8.502e-05,2]
[396523017,1765033837965,-17737.8813064,8.502e-05,2]
[396523018,1765033837974,-206.8461797,8.54e-05,2]
[396523019,1765033837983,-1434.25,8.544e-05,2]
[396523020,1765033837992,-300.0,8.598e-05,2]
[396523021,1765033838001,-300.0,8.598e-05,2]
[396523022,1765033838010,-300.0,8.598e-05,2]
[396523023,1765033838019,-441.82457253,8.599e-05,2]
[396523024,1765033838031,-758.17542747,8.599e-05,2]
[396523025,1765033838040,-153.0,8.6e-05,2]
[396523026,1765033838049,-251.90729503,8.6e-05,2]
[396523027,1765033838065,-145.40573027,8.6e-05,2]
[396523028,1765033838074,-153.0,8.6e-05,2]
[396523029,1765033838084,-397.3130253,8.6e-05,2]
[396523030,1765033838094,-1774.12,8.6e-05,2]
[396523031,1765033838103,-250.0,8.639e-05,2]
[396523032,1765033838113,-217.03635681,8.64e-05,2]
[396523033,1765033838122,-478.24752155,8.64e-05,2]
[396523034,1765033838133,-21.75247845,8.64e-05,2]
[396523035,1765033838142,-500.0,8.64e-05,2]
[396523036,1765033838151,-372.85955331,8.64e-05,2]
[396523037,1765033838170,-127.14044669,8.64e-05,2]
[396523038,1765033838183,-235.88861788,8.64e-05,2]
[396523039,1765033838192,-280.06436691,8.644e-05,2]
[396523040,1765033838203,-651.5443167,8.644e-05,2]
[396523041,1765033838214,-1381.22828871,8.644e-05,2]
[396523042,1765033838223,-801.7230791,8.65e-05,2]
[396523043,1765033838233,-237.23398399,8.693e-05,2]
[396523044,1765033838244,-106.1165202,8.693e-05,2]